[Event "CZE-ch 2020"]
[Site "Pilsen"]
[Date "2020.08.28"]
[Round "6.37"]
[White "Benes, Miroslav"]
[Black "Placer, Sebastian"]
[Result "0-1"]
[ECO "A05"]
[WhiteElo "2011"]
[BlackElo "2097"]
[Annotator "ChessBase"]
[PlyCount "140"]
[EventDate "2020.08.23"]
[EventType "swiss"]
[EventCountry "CZE"]
[SourceTitle "playchess.com"]
[Source "ChessBase"]
[SourceQuality "1"]
[TimeControl "40/5400+30:1800+30"]

1. Nf3 {[%emt 0:00:00]} Nf6 {[%emt 0:00:00]} 2. c4 {[%emt 0:00:00]} g6 {[%emt 0:00:00]} 3. Nc3 {[%emt 0:00:29]} d5 {[%emt 0:00:03]} 4. cxd5 {[%emt 0:01:23]} Nxd5 {[%emt 0:00:04]} 5. e4 {[%emt 0:00:12]} Nxc3 {[%emt 0:00:46]} 6. dxc3 {[%emt 0:00:08]} Qxd1+ {[%emt 0:00:04]} 7. Kxd1 {[%emt 0:00:13]} f6 {[%emt 0:00:18]} 8. Be3 {[%emt 0:00:38]} e5 {[%emt 0:00:49]} 9. Nd2 {[%emt 0:01:47]} Be6 {[%emt 0:01:38]} 10. Bc4 {[%emt 0:00:18]} Kf7 {[%emt 0:00:02]} 11. Kc2 {[%emt 0:01:58]} Nd7 {[%emt 0:02:21]} 12. b4 {[%emt 0:00:17]} c6 {[%emt 0:00:34]} 13. Rhd1 {[%emt 0:12:28]} Bd6 {[%emt 0:04:45]} 14. Bxe6+ {[%emt 0:12:29]} Kxe6 {[%emt 0:00:06]} 15. Nc4 {[%emt 0:04:40]} Bc7 {[%emt 0:00:05]} 16. Rd3 {[%emt 0:02:51]} f5 {[%emt 0:13:38]} 17. exf5+ {[%emt 0:16:41]} gxf5 {[%emt 0:00:24]} 18. Re1 {[%emt 0:01:27]} Rhg8 {[%emt 0:22:32]} 19. g3 {[%emt 0:01:55]} b5 {[%emt 0:03:17]} 20. Nxe5 {[%emt 0:13:03]} Nxe5 {[%emt 0:19:10]} 21. Bd4 {[%emt 0:01:01]} Rge8 {[%emt 0:04:18]} 22. f4 {[%emt 0:04:13]} Kf6 {[%emt 0:00:32]} 23. Bxe5+ {[%emt 0:00:35]} Bxe5 {[%emt 0:00:12]} 24. fxe5+ {[%emt 0:00:09]} Rxe5 {[%emt 0:00:12]} 25. Rd6+ Ke7 26. Rxe5+ {[%emt 0:02:37]} Kxd6 {[%emt 0:00:00]} 27. Rxf5 {[%emt 0:00:11]} a5 {[%emt 0:00:01]} 28. bxa5 {[%emt 0:01:34]} Rxa5 {[%emt 0:00:02]} 29. Kb3 {[%emt 0:01:07]} Ra7 {[%emt 0:00:59]} 30. Rh5 {[%emt 0:00:44]} Re7 {[%emt 0:01:03]} 31. a4 {[%emt 0:02:59]} bxa4+ {[%emt 0:02:19]} 32. Kxa4 {[%emt 0:00:02]} Rb7 {[%emt 0:02:15]} 33. c4 {[%emt 0:01:18]} c5 {[%emt 0:02:45]} 34. Ka5 {[%emt 0:01:55]} Rb4 {[%emt 0:05:20]} 35. Rh6+ {[%emt 0:04:10]} Ke5 {[%emt 0:00:09]} 36. Rxh7 {[%emt 0:00:12]} Rxc4 {[%emt 0:00:06]} 37. Kb5 {[%emt 0:00:14]} Rc1 {[%emt 0:00:32]} 38. Rh4 {[%emt 0:00:28]} Kd5 {[%emt 0:00:12]} 39. Rh5+ {[%emt 0:00:21]} Kd4 {[%emt 0:00:17]} 40. Rh4+ {[%emt 0:06:19]} Kd5 {[%emt 0:01:13]} 41. Rh5+ {[%emt 0:32:24]} Kd4 {[%emt 0:30:07]} 42. Rh4+ {[%emt 0:00:00]} Kd3 {[%emt 0:00:00]} 43. Rh8 {[%emt 0:00:00]} c4 {[%emt 0:00:00]} 44. Rd8+ {[%emt 0:00:00]} Kc3 {[%emt 0:00:00]} 45. h4 {[%emt 0:00:00]} Kb3 {[%emt 0:00:00]} 46. Kc6 {[%emt 0:00:00]} c3 {[%emt 0:00:00]} 47. Rb8+ {[%emt 0:00:00]} Kc4 {[%emt 0:00:00]} 48. Kd6 {[%emt 0:00:00]} Rg1 {[%emt 0:00:00]} 49. Ke5 {[%emt 0:04:03]} Rxg3 {[%emt 0:00:00]} 50. Kf4 {[%emt 0:01:19]} Rh3 {[%emt 0:00:00]} 51. Kg4 {[%emt 0:00:10]} Rd3 {[%emt 0:00:00]} 52. h5 {[%emt 0:00:07]} Rd4+ {[%emt 0:00:00]} 53. Kg3 {[%emt 0:03:18]} Rd5 {[%emt 0:00:27]} 54. h6 {[%emt 0:01:40]} Rh5 {[%emt 0:01:05]} 55. Rc8+ {[%emt 0:00:20]} Kd3 {[%emt 0:01:49]} 56. Rc6 {[%emt 0:00:14]} c2 {[%emt 0:06:49]} 57. Kg4 {[%emt 0:00:16]} Rxh6 {[%emt 0:00:12]} 58. Rxh6 {[%emt 0:01:20]} c1=Q {[%emt 0:00:02]} 59. Rd6+ {[%emt 0:00:19]} Ke4 {[%emt 0:00:07]} 60. Re6+ {[%emt 0:00:05]} Kd5 {[%emt 0:00:11]} 61. Rf6 {[%emt 0:00:37]} Qg1+ {[%emt 0:00:35]} 62. Kf5 {[%emt 0:00:07]} Qf2+ {[%emt 0:00:06]} 63. Kg6 {[%emt 0:00:09]} Qh4 {[%emt 0:00:21]} 64. Kg7 {[%emt 0:00:23]} Ke5 {[%emt 0:00:21]} 65. Rf7 {[%emt 0:00:44]} Ke6 {[%emt 0:00:16]} 66. Rf8 {[%emt 0:00:48]} Qe7+ {[%emt 0:00:12]} 67. Kg8 {[%emt 0:00:07]} Qd7 {[%emt 0:00:46]} 68. Kh8 {[%emt 0:00:48]} Ke7 {[%emt 0:00:27]} 69. Rf3 {[%emt 0:01:22]} Qd4+ {[%emt 0:00:12]} 70. Kg8 {[%emt 0:00:41]} Qg4+ {[%emt 0:00:01]} 0-1

[Event "CZE-ch 2020"]
[Site "Pilsen"]
[Date "2020.08.29"]
[Round "7.1"]
[White "Stocek, Jiri"]
[Black "Laznicka, Viktor"]
[Result "1/2-1/2"]
[ECO "A85"]
[WhiteElo "2595"]
[BlackElo "2638"]
[Annotator "ChessBase"]
[PlyCount "81"]
[EventDate "2020.08.23"]
[EventType "swiss"]
[EventCountry "CZE"]
[SourceTitle "playchess.com"]
[Source "ChessBase"]
[SourceQuality "1"]
[TimeControl "40/5400+30:1800+30"]

1. d4 {[%emt 0:00:00]} f5 {[%emt 0:02:54]} 2. c4 {[%emt 0:01:48]} Nf6 {[%emt 0:00:05]} 3. Nc3 {[%emt 0:00:13]} d6 {[%emt 0:00:03]} 4. Bg5 {[%emt 0:02:50]} Nbd7 {[%emt 0:01:03]} 5. Qc2 {[%emt 0:03:38]} g6 {[%emt 0:02:14]} 6. O-O-O {[%emt 0:01:25]} c6 {[%emt 0:02:36]} 7. f3 {[%emt 0:10:24]} Qa5 {[%emt 0:12:02]} 8. e4 {[%emt 0:08:17]} fxe4 {[%emt 0:00:17]} 9. Bd2 {[%emt 0:00:14]} Qb6 {[%emt 0:06:24]} 10. Na4 {[%emt 0:12:42]} Qc7 {[%emt 0:21:15]} 11. fxe4 {[%emt 0:01:05]} Ng4 {[%emt 0:00:41]} 12. Nh3 {[%emt 0:01:30]} Bg7 {[%emt 0:00:36]} 13. Be2 {[%emt 0:05:20]} Nb6 {[%emt 0:00:05]} 14. c5 {[%emt 0:11:16]} Nxa4 {[%emt 0:10:37]} 15. Qxa4 {[%emt 0:00:53]} b5 {[%emt 0:21:23]} 16. Qa3 {[%emt 0:04:25]} dxc5 {[%emt 0:00:50]} 17. Ba5 {[%emt 0:17:55]} b4 {[%emt 0:04:39]} 18. Qa4 {[%emt 0:00:05]} Qd6 {[%emt 0:01:39]} 19. dxc5 {[%emt 0:00:46]} Qxc5+ {[%emt 0:00:46]} 20. Kb1 {[%emt 0:00:07]} O-O {[%emt 0:01:05]} 21. Bxb4 {[%emt 0:01:27]} Qb6 {[%emt 0:00:02]} 22. Qb3+ {[%emt 0:02:48]} Kh8 {[%emt 0:00:17]} 23. Bxe7 {[%emt 0:01:23]} Qxb3 {[%emt 0:00:31]} 24. axb3 {[%emt 0:00:06]} Re8 {[%emt 0:00:03]} 25. Bc5 {[%emt 0:01:06]} Nf6 {[%emt 0:04:09]} 26. Ng5 {[%emt 0:02:20]} Nxe4 {[%emt 0:00:31]} 27. Nxe4 {[%emt 0:00:27]} Bf5 {[%emt 0:00:04]} 28. Bd3 {[%emt 0:00:40]} Bxe4 {[%emt 0:00:09]} 29. Bxe4 {[%emt 0:00:17]} Rxe4 {[%emt 0:00:05]} 30. Rhe1 {[%emt 0:00:25]} Re5 {[%emt 0:05:45]} 31. Rxe5 {[%emt 0:02:52]} Bxe5 {[%emt 0:00:01]} 32. Rd7 {[%emt 0:01:45]} a5 {[%emt 0:02:29]} 33. Re7 {[%emt 0:02:12]} Bg7 {[%emt 0:00:27]} 34. h3 {[%emt 0:01:02]} Kg8 {[%emt 0:00:05]} 35. Re6 {[%emt 0:00:58]} Rc8 {[%emt 0:00:50]} 36. Kc2 {[%emt 0:00:13]} Bf8 {[%emt 0:00:31]} 37. Bb6 {[%emt 0:00:45]} Bb4 {[%emt 0:00:19]} 38. Bd4 {[%emt 0:01:03]} Kf7 {[%emt 0:00:10]} 39. Re4 {[%emt 0:00:45]} Re8 {[%emt 0:01:14]} 40. Rxe8 {[%emt 0:00:45]} Kxe8 {[%emt 0:00:01]} 41. Kd3 {[%emt 0:03:04]} 1/2-1/2

[Event "CZE-ch 2020"]
[Site "Pilsen"]
[Date "2020.08.29"]
[Round "7.3"]
[White "Polak, Tomas"]
[Black "Nguyen, Thai Dai Van"]
[Result "1/2-1/2"]
[ECO "D85"]
[WhiteElo "2563"]
[BlackElo "2569"]
[Annotator "ChessBase"]
[PlyCount "62"]
[EventDate "2020.08.23"]
[EventType "swiss"]
[EventCountry "CZE"]
[SourceTitle "playchess.com"]
[Source "ChessBase"]
[SourceQuality "1"]
[TimeControl "40/5400+30:1800+30"]

1. d4 {[%emt 0:00:00]} Nf6 {[%emt 0:01:06]} 2. c4 {[%emt 0:00:00]} g6 {[%emt 0:00:12]} 3. Nc3 {[%emt 0:00:36]} d5 {[%emt 0:00:11]} 4. cxd5 {[%emt 0:04:28]} Nxd5 {[%emt 0:00:08]} 5. e4 {[%emt 0:00:11]} Nxc3 {[%emt 0:00:08]} 6. bxc3 {[%emt 0:00:02]} Bg7 {[%emt 0:00:10]} 7. Be3 {[%emt 0:00:45]} c5 {[%emt 0:00:20]} 8. Qd2 {[%emt 0:00:11]} Qa5 {[%emt 0:05:56]} 9. Rc1 {[%emt 0:05:45]} cxd4 {[%emt 0:00:39]} 10. cxd4 {[%emt 0:00:07]} Qxd2+ {[%emt 0:00:03]} 11. Kxd2 {[%emt 0:00:06]} O-O {[%emt 0:00:46]} 12. Bb5 {[%emt 0:13:48]} Nc6 {[%emt 0:24:32]} 13. Ne2 {[%emt 0:19:19]} Rd8 {[%emt 0:00:08]} 14. Bxc6 {[%emt 0:02:49]} bxc6 {[%emt 0:00:05]} 15. Rhd1 {[%emt 0:00:28]} f5 {[%emt 0:02:25]} 16. Ke1 {[%emt 0:07:13]} fxe4 {[%emt 0:04:27]} 17. Rxc6 {[%emt 0:00:35]} Rb8 {[%emt 0:00:48]} 18. Rc7 {[%emt 0:05:57]} Bg4 {[%emt 0:12:09]} 19. h3 {[%emt 0:16:56]} Rd7 {[%emt 0:06:20]} 20. Rc6 {[%emt 0:00:44]} Bxe2 {[%emt 0:00:51]} 21. Kxe2 {[%emt 0:00:03]} Rb2+ {[%emt 0:00:40]} 22. Rd2 {[%emt 0:00:29]} Rxd2+ {[%emt 0:00:59]} 23. Kxd2 {[%emt 0:00:23]} Bxd4 {[%emt 0:00:20]} 24. Re6 {[%emt 0:01:15]} Bxe3+ {[%emt 0:08:22]} 25. Kxe3 {[%emt 0:00:14]} Rd3+ {[%emt 0:00:14]} 26. Kxe4 {[%emt 0:00:29]} Rd2 {[%emt 0:00:06]} 27. Kf3 {[%emt 0:01:48]} Rxa2 {[%emt 0:00:11]} 28. Rxe7 {[%emt 0:00:05]} Ra3+ {[%emt 0:00:18]} 29. Kg4 {[%emt 0:00:34]} Ra2 {[%emt 0:00:07]} 30. Kg3 {[%emt 0:00:16]} Ra3+ {[%emt 0:00:07]} 31. Kg4 {[%emt 0:03:04]} Ra2 {[%emt 0:00:06]} 1/2-1/2

[Event "CZE-ch 2020"]
[Site "Pilsen"]
[Date "2020.08.29"]
[Round "7.4"]
[White "Hracek, Zbynek"]
[Black "Sorm, Daniel"]
[Result "1-0"]
[ECO "B12"]
[WhiteElo "2563"]
[BlackElo "2343"]
[Annotator "ChessBase"]
[PlyCount "61"]
[EventDate "2020.08.23"]
[EventType "swiss"]
[EventCountry "CZE"]
[SourceTitle "playchess.com"]
[Source "ChessBase"]
[SourceQuality "1"]
[TimeControl "40/5400+30:1800+30"]

1. e4 {[%emt 0:00:00]} c6 {[%emt 0:00:00]} 2. d4 {[%emt 0:00:00]} d5 {[%emt 0:00:00]} 3. e5 {[%emt 0:00:00]} Bf5 {[%emt 0:00:00]} 4. h4 {[%emt 0:00:00]} h5 {[%emt 0:00:00]} 5. c4 {[%emt 0:00:00]} e6 {[%emt 0:01:37]} 6. Nc3 {[%emt 0:00:00]} dxc4 {[%emt 0:16:45]} 7. Bxc4 {[%emt 0:01:45]} Nd7 {[%emt 0:00:45]} 8. Nge2 {[%emt 0:01:13]} Nb6 {[%emt 0:00:37]} 9. Bb3 {[%emt 0:07:13]} Ne7 {[%emt 0:05:43]} 10. Bg5 {[%emt 0:05:51]} Qd7 {[%emt 0:01:29]} 11. O-O {[%emt 0:02:31]} Ned5 {[%emt 0:02:41]} 12. Ng3 {[%emt 0:01:47]} Bg6 {[%emt 0:00:52]} 13. Nce4 {[%emt 0:05:51]} Be7 {[%emt 0:04:51]} 14. Re1 {[%emt 0:21:09]} Bxg5 {[%emt 0:10:58]} 15. Nxg5 {[%emt 0:08:54]} Ne7 {[%emt 0:08:58]} 16. Bc2 {[%emt 0:09:51]} O-O-O {[%emt 0:25:02]} 17. Bxg6 {[%emt 0:06:08]} Nxg6 {[%emt 0:00:06]} 18. N3e4 {[%emt 0:00:34]} Kb8 {[%emt 0:00:45]} 19. Nd6 {[%emt 0:01:18]} Rdf8 {[%emt 0:00:22]} 20. g3 {[%emt 0:06:46]} Nc8 {[%emt 0:00:34]} 21. Nge4 {[%emt 0:04:34]} Qc7 {[%emt 0:01:46]} 22. Re3 {[%emt 0:01:57]} Rd8 {[%emt 0:02:01]} 23. Rb3 {[%emt 0:00:22]} b6 {[%emt 0:02:30]} 24. Rc1 {[%emt 0:01:02]} f5 {[%emt 0:04:11]} 25. Nc5 {[%emt 0:01:43]} Qe7 {[%emt 0:00:08]} 26. Na6+ {[%emt 0:02:16]} Ka8 {[%emt 0:00:05]} 27. Rxc6 {[%emt 0:00:51]} Nxd6 {[%emt 0:02:57]} 28. exd6 {[%emt 0:00:02]} Qb7 {[%emt 0:02:52]} 29. Rc7 {[%emt 0:00:48]} Qd5 {[%emt 0:01:29]} 30. Rxg7 {[%emt 0:00:24]} Qg2+ {[%emt 0:01:18]} 31. Kxg2 1-0

[Event "CZE-ch 2020"]
[Site "Pilsen"]
[Date "2020.08.29"]
[Round "7.5"]
[White "Malinovsky, Karel"]
[Black "Orsag, Milan"]
[Result "1-0"]
[ECO "B46"]
[WhiteElo "2474"]
[BlackElo "2300"]
[Annotator "ChessBase"]
[PlyCount "57"]
[EventDate "2020.08.23"]
[EventType "swiss"]
[EventCountry "CZE"]
[SourceTitle "playchess.com"]
[Source "ChessBase"]
[SourceQuality "1"]
[TimeControl "40/5400+30:1800+30"]

1. e4 {[%emt 0:00:00]} c5 {[%emt 0:00:00]} 2. Nf3 {[%emt 0:00:00]} e6 {[%emt 0:00:00]} 3. d4 {[%emt 0:00:00]} cxd4 {[%emt 0:00:00]} 4. Nxd4 {[%emt 0:00:00]} Nc6 {[%emt 0:00:12]} 5. Nc3 {[%emt 0:00:03]} a6 {[%emt 0:00:27]} 6. g3 {[%emt 0:01:24]} d6 {[%emt 0:05:08]} 7. Bg2 {[%emt 0:00:47]} Bd7 {[%emt 0:01:09]} 8. O-O {[%emt 0:01:19]} Nf6 {[%emt 0:03:13]} 9. Nb3 {[%emt 0:03:04]} b5 {[%emt 0:08:03]} 10. a3 {[%emt 0:01:14]} Rc8 {[%emt 0:03:18]} 11. f4 {[%emt 0:00:57]} h5 {[%emt 0:11:08]} 12. Qe2 {[%emt 0:08:26]} Qc7 {[%emt 0:00:47]} 13. Bd2 {[%emt 0:02:09]} Be7 {[%emt 0:01:49]} 14. h3 {[%emt 0:09:32]} Qa7+ {[%emt 0:10:22]} 15. Be3 {[%emt 0:07:54]} Qb8 {[%emt 0:01:18]} 16. Rfe1 {[%emt 0:06:52]} O-O {[%emt 0:01:59]} 17. Bf2 {[%emt 0:03:22]} b4 {[%emt 0:13:43]} 18. axb4 {[%emt 0:07:11]} Nxb4 {[%emt 0:00:31]} 19. e5 {[%emt 0:00:45]} dxe5 {[%emt 0:06:01]} 20. fxe5 {[%emt 0:00:07]} Nfd5 {[%emt 0:00:44]} 21. Nxd5 {[%emt 0:01:31]} Nxd5 {[%emt 0:01:00]} 22. Qxh5 {[%emt 0:06:11]} g6 {[%emt 0:00:13]} 23. Qg4 {[%emt 0:05:03]} Rfd8 {[%emt 0:03:55]} 24. Bxd5 {[%emt 0:03:52]} exd5 {[%emt 0:00:09]} 25. e6 {[%emt 0:00:22]} Rc4 {[%emt 0:05:19]} 26. Bd4 {[%emt 0:05:19]} Rxd4 {[%emt 0:14:54]} 27. Nxd4 {[%emt 0:01:49]} Bc8 {[%emt 0:00:07]} 28. exf7+ {[%emt 0:01:49]} Kxf7 {[%emt 0:00:07]} 29. Rxe7+ {[%emt 0:00:22]} 1-0

[Event "CZE-ch 2020"]
[Site "Pilsen"]
[Date "2020.08.29"]
[Round "7.8"]
[White "Havelka, Josef"]
[Black "Brejnik, Gustav"]
[Result "1/2-1/2"]
[ECO "C89"]
[WhiteElo "2367"]
[BlackElo "2265"]
[Annotator "ChessBase"]
[PlyCount "146"]
[EventDate "2020.08.23"]
[EventType "swiss"]
[EventCountry "CZE"]
[SourceTitle "playchess.com"]
[Source "ChessBase"]
[SourceQuality "1"]
[TimeControl "40/5400+30:1800+30"]

1. e4 {[%emt 0:00:00]} e5 {[%emt 0:00:00]} 2. Nf3 {[%emt 0:00:16]} Nc6 {[%emt 0:00:00]} 3. Bb5 {[%emt 0:06:04]} a6 {[%emt 0:00:00]} 4. Ba4 {[%emt 0:00:11]} Nf6 {[%emt 0:00:00]} 5. O-O {[%emt 0:02:29]} Be7 {[%emt 0:00:25]} 6. Re1 {[%emt 0:01:24]} b5 {[%emt 0:00:05]} 7. Bb3 {[%emt 0:00:03]} O-O {[%emt 0:00:07]} 8. c3 {[%emt 0:03:33]} d5 {[%emt 0:00:07]} 9. exd5 {[%emt 0:05:09]} Nxd5 {[%emt 0:00:13]} 10. Nxe5 {[%emt 0:04:18]} Nxe5 {[%emt 0:00:04]} 11. Rxe5 {[%emt 0:00:04]} c6 {[%emt 0:00:02]} 12. Bxd5 {[%emt 0:03:36]} cxd5 {[%emt 0:00:06]} 13. d3 {[%emt 0:00:42]} Bd6 {[%emt 0:00:28]} 14. Re1 {[%emt 0:00:22]} Qh4 {[%emt 0:31:08]} 15. g3 {[%emt 0:03:10]} Qh3 {[%emt 0:00:01]} 16. Qf3 {[%emt 0:26:10]} Bg4 {[%emt 0:00:05]} 17. Qg2 {[%emt 0:00:15]} Qh5 {[%emt 0:00:03]} 18. f4 {[%emt 0:02:19]} Rae8 {[%emt 0:08:08]} 19. Be3 {[%emt 0:01:04]} Qf5 {[%emt 0:23:48]} 20. Nd2 {[%emt 0:07:31]} Qxd3 {[%emt 0:00:10]} 21. Bd4 {[%emt 0:00:49]} Be2 {[%emt 0:03:16]} 22. Nb3 {[%emt 0:03:10]} Bf3 {[%emt 0:01:03]} 23. Qf2 {[%emt 0:00:50]} Be4 {[%emt 0:01:04]} 24. Nc5 {[%emt 0:03:58]} Qf3 {[%emt 0:01:02]} 25. Nxe4 {[%emt 0:03:30]} dxe4 {[%emt 0:00:06]} 26. Qxf3 {[%emt 0:00:07]} exf3 {[%emt 0:00:00]} 27. Kf2 {[%emt 0:00:11]} Re2+ {[%emt 0:14:37]} 28. Rxe2 {[%emt 0:00:08]} fxe2 {[%emt 0:00:01]} 29. Kxe2 {[%emt 0:00:08]} Re8+ {[%emt 0:00:20]} 30. Kf3 {[%emt 0:13:12]} f5 {[%emt 0:00:01]} 31. Rd1 {[%emt 0:01:50]} Re6 {[%emt 0:00:49]} 32. Be3 {[%emt 0:03:09]} Kf7 {[%emt 0:01:33]} 33. Rd5 {[%emt 0:01:48]} g6 {[%emt 0:00:01]} 34. a4 {[%emt 0:01:30]} bxa4 {[%emt 0:00:41]} 35. Ra5 {[%emt 0:00:18]} Bc7 {[%emt 0:06:22]} 36. Rxa4 {[%emt 0:00:07]} Ke7 {[%emt 0:00:19]} 37. Bd4 {[%emt 0:01:32]} Kd7 {[%emt 0:01:48]} 38. Be5 {[%emt 0:00:51]} Bxe5 {[%emt 0:03:47]} 39. fxe5 {[%emt 0:00:05]} Rb6 {[%emt 0:00:11]} 40. b4 {[%emt 0:02:41]} Ke6 {[%emt 0:02:48]} 41. Ke3 {[%emt 0:03:35]} Kxe5 {[%emt 0:00:51]} 42. Ra5+ {[%emt 0:00:23]} Ke6 {[%emt 0:03:31]} 43. Kd4 {[%emt 0:04:46]} Rd6+ {[%emt 0:19:25]} 44. Kc4 {[%emt 0:00:08]} h6 {[%emt 0:02:28]} 45. Kb3 {[%emt 0:08:05]} g5 {[%emt 0:00:14]} 46. c4 {[%emt 0:00:07]} f4 {[%emt 0:01:24]} 47. gxf4 {[%emt 0:00:12]} gxf4 {[%emt 0:00:01]} 48. c5 {[%emt 0:00:14]} Rc6 {[%emt 0:00:25]} 49. Kc4 {[%emt 0:02:06]} Ke5 {[%emt 0:01:11]} 50. Ra1 {[%emt 0:05:43]} f3 {[%emt 0:01:25]} 51. b5 {[%emt 0:01:49]} axb5+ {[%emt 0:00:06]} 52. Kxb5 {[%emt 0:00:04]} Rc8 {[%emt 0:00:52]} 53. c6 {[%emt 0:01:02]} Kf4 {[%emt 0:02:08]} 54. Kb6 {[%emt 0:02:26]} f2 {[%emt 0:00:09]} 55. Kb7 {[%emt 0:02:01]} Re8 {[%emt 0:00:10]} 56. c7 {[%emt 0:01:46]} Kf3 {[%emt 0:00:05]} 57. c8=Q {[%emt 0:01:35]} Rxc8 {[%emt 0:00:02]} 58. Kxc8 {[%emt 0:00:08]} Kg2 {[%emt 0:00:08]} 59. h4 {[%emt 0:01:42]} f1=Q {[%emt 0:00:22]} 60. Rxf1 {[%emt 0:00:13]} Kxf1 {[%emt 0:00:07]} 61. Kd7 {[%emt 0:00:39]} Kg2 {[%emt 0:00:17]} 62. Ke6 {[%emt 0:00:18]} Kh3 {[%emt 0:00:09]} 63. Kf5 {[%emt 0:01:16]} Kxh4 {[%emt 0:00:02]} 64. Kf4 {[%emt 0:00:06]} Kh3 {[%emt 0:00:06]} 65. Kf3 {[%emt 0:00:04]} h5 {[%emt 0:00:08]} 66. Kf2 {[%emt 0:00:10]} Kh2 {[%emt 0:00:03]} 67. Kf1 {[%emt 0:00:18]} h4 {[%emt 0:00:04]} 68. Kf2 {[%emt 0:00:03]} Kh1 {[%emt 0:00:18]} 69. Kf1 {[%emt 0:00:11]} Kh2 {[%emt 0:00:06]} 70. Kf2 {[%emt 0:00:03]} h3 {[%emt 0:00:04]} 71. Kf1 {[%emt 0:00:03]} Kg3 {[%emt 0:00:18]} 72. Kg1 {[%emt 0:00:03]} h2+ {[%emt 0:00:07]} 73. Kh1 {[%emt 0:00:03]} Kh3 1/2-1/2

[Event "CZE-ch 2020"]
[Site "Pilsen"]
[Date "2020.08.29"]
[Round "7.9"]
[White "Kozusek, Daniel"]
[Black "Hollan, Martin"]
[Result "1/2-1/2"]
[ECO "A45"]
[WhiteElo "2307"]
[BlackElo "2346"]
[Annotator "NA"]
[PlyCount "73"]
[EventDate "2020.08.23"]
[EventType "swiss"]
[EventCountry "CZE"]
[SourceTitle "playchess.com"]
[Source "ChessBase"]
[SourceQuality "1"]
[TimeControl "40/5400+30:1800+30"]

1. d4 {[%emt 0:00:00]} Nf6 {[%emt 0:00:00]} 2. Bg5 {[%emt 0:00:00]} e6 {[%emt 0:00:00]} 3. e4 {[%emt 0:00:00]} h6 {[%emt 0:00:00]} 4. Bxf6 {[%emt 0:00:01]} Qxf6 {[%emt 0:00:00]} 5. c3 {[%emt 0:00:05]} d6 {[%emt 0:02:51]} 6. Bd3 {[%emt 0:01:24]} g6 {[%emt 0:00:41]} 7. Ne2 {[%emt 0:00:39]} Bg7 {[%emt 0:00:44]} 8. O-O {[%emt 0:00:34]} e5 {[%emt 0:00:05]} 9. f4 {[%emt 0:01:01]} Qe7 {[%emt 0:00:08]} 10. f5 {[%emt 0:04:30]} gxf5 {[%emt 0:01:47]} 11. exf5 {[%emt 0:00:30]} Nd7 {[%emt 0:02:09]} 12. Ng3 {[%emt 0:10:21]} Nf6 {[%emt 0:00:27]} 13. Qf3 {[%emt 0:06:18]} (13. Nd2 $14) 13... Bd7 {[%emt 0:05:07]} 14. Qxb7 {[%emt 0:03:49]} O-O {[%emt 0:00:14]} 15. Nd2 {[%emt 0:02:32]} Rab8 {[%emt 0:03:11]} 16. Qf3 $11 {[%emt 0:00:19]} exd4 {[%emt 0:20:10]} 17. Rae1 {[%emt 0:06:06]} Qd8 {[%emt 0:00:10]} 18. cxd4 {[%emt 0:00:35]} Rxb2 {[%emt 0:01:45]} 19. Nde4 {[%emt 0:02:06]} d5 {[%emt 0:10:49]} 20. Nxf6+ {[%emt 0:19:04]} Bxf6 {[%emt 0:01:40]} 21. Kh1 {[%emt 0:00:43]} Bb5 {[%emt 0:07:30]} 22. Bxb5 {[%emt 0:02:13]} Rxb5 {[%emt 0:00:10]} 23. Nh5 {[%emt 0:00:31]} Rb4 {[%emt 0:14:01]} 24. Qxd5 {[%emt 0:07:23]} Rxd4 {[%emt 0:00:41]} 25. Qc5 {[%emt 0:02:43]} Qd6 {[%emt 0:06:33]} 26. Nxf6+ {[%emt 0:01:41]} Qxf6 {[%emt 0:00:31]} 27. Qxa7 {[%emt 0:01:22]} Rd2 {[%emt 0:02:32]} 28. Qxc7 {[%emt 0:07:53]} Rxa2 {[%emt 0:01:06]} 29. Qe5 {[%emt 0:02:53]} Qxe5 {[%emt 0:00:21]} 30. Rxe5 {[%emt 0:00:07]} Rfa8 {[%emt 0:00:04]} 31. h3 {[%emt 0:01:56]} Ra1 {[%emt 0:00:20]} 32. Rxa1 {[%emt 0:00:04]} Rxa1+ {[%emt 0:00:04]} 33. Kh2 {[%emt 0:00:05]} Kg7 {[%emt 0:00:04]} 34. Kg3 {[%emt 0:00:36]} Kf6 {[%emt 0:03:22]} 35. Rb5 {[%emt 0:00:04]} Ra4 {[%emt 0:00:27]} 36. Kf3 {[%emt 0:00:34]} Kg5 {[%emt 0:00:38]} 37. g3 {[%emt 0:01:32]} 1/2-1/2

[Event "CZE-ch 2020"]
[Site "Pilsen"]
[Date "2020.08.29"]
[Round "7.10"]
[White "Rabatin, Jakub"]
[Black "Hurdzan, Tomas"]
[Result "1/2-1/2"]
[ECO "C03"]
[WhiteElo "2291"]
[BlackElo "2325"]
[Annotator "ChessBase"]
[PlyCount "73"]
[EventDate "2020.08.23"]
[EventType "swiss"]
[EventCountry "CZE"]
[SourceTitle "playchess.com"]
[Source "ChessBase"]
[SourceQuality "1"]
[TimeControl "40/5400+30:1800+30"]

1. e4 {[%emt 0:00:00]} e6 {[%emt 0:00:00]} 2. d4 {[%emt 0:00:00]} d5 {[%emt 0:00:00]} 3. Nd2 {[%emt 0:00:05]} Be7 {[%emt 0:00:11]} 4. Bd3 {[%emt 0:04:50]} c5 {[%emt 0:00:29]} 5. dxc5 {[%emt 0:08:39]} Nf6 {[%emt 0:00:52]} 6. exd5 {[%emt 0:04:24]} Qxd5 {[%emt 0:00:42]} 7. Ngf3 {[%emt 0:00:24]} Nbd7 {[%emt 0:02:04]} 8. O-O {[%emt 0:03:50]} O-O {[%emt 0:04:20]} 9. b4 {[%emt 0:10:07]} a5 {[%emt 0:02:49]} 10. Bc4 {[%emt 0:00:04]} Qh5 {[%emt 0:01:31]} 11. c3 {[%emt 0:01:38]} Nd5 {[%emt 0:15:25]} 12. Bxd5 {[%emt 0:11:09]} Qxd5 {[%emt 0:00:19]} 13. a3 {[%emt 0:10:30]} b6 {[%emt 0:10:21]} 14. cxb6 {[%emt 0:00:36]} Nxb6 {[%emt 0:02:01]} 15. Nb3 {[%emt 0:03:52]} a4 {[%emt 0:05:13]} 16. Na5 {[%emt 0:01:40]} Ba6 {[%emt 0:17:42]} 17. Re1 {[%emt 0:05:37]} Rac8 {[%emt 0:09:32]} 18. Bb2 {[%emt 0:12:11]} Bf6 {[%emt 0:00:55]} 19. Nd4 {[%emt 0:03:39]} Rfd8 {[%emt 0:02:44]} 20. Ndc6 {[%emt 0:08:29]} Rd6 {[%emt 0:04:29]} 21. Qxd5 {[%emt 0:00:23]} Nxd5 {[%emt 0:00:41]} 22. Rad1 {[%emt 0:00:19]} Kf8 {[%emt 0:04:18]} 23. c4 {[%emt 0:07:43]} Bxb2 {[%emt 0:01:28]} 24. cxd5 {[%emt 0:00:09]} Rxd5 {[%emt 0:04:49]} 25. Rxd5 {[%emt 0:00:27]} exd5 {[%emt 0:00:05]} 26. Rb1 {[%emt 0:00:51]} Re8 {[%emt 0:04:25]} 27. h3 {[%emt 0:01:07]} Re2 {[%emt 0:00:51]} 28. Rd1 {[%emt 0:00:35]} Bc4 {[%emt 0:02:31]} 29. Nd4 {[%emt 0:00:40]} Re8 {[%emt 0:01:41]} 30. Nac6 {[%emt 0:00:17]} Rc8 {[%emt 0:01:53]} 31. Rb1 {[%emt 0:00:35]} Bxa3 {[%emt 0:00:16]} 32. Ra1 {[%emt 0:00:04]} Bb2 {[%emt 0:00:11]} 33. Rxa4 {[%emt 0:00:05]} Bb5 {[%emt 0:00:56]} 34. Ra2 {[%emt 0:01:03]} Bxd4 {[%emt 0:00:40]} 35. Nxd4 {[%emt 0:00:03]} Bc4 {[%emt 0:00:30]} 36. Rb2 {[%emt 0:00:29]} Ke7 {[%emt 0:00:17]} 37. f3 {[%emt 0:01:12]} 1/2-1/2